[Event "2026 European Womens Championship"]
[Site "Batumi, GE"]
[Date "2026.05.26"]
[Round "2"]
[White "Rekhviashvili, Mariam"]
[Black "Berke, Ana"]
[Result "0-1"]
[Board "66"]
[TimeControl "5400+30"]
[WhiteFideId "13635859"]
[BlackFideId "14510359"]
[WhiteElo "1836"]
[BlackElo "2164"]
[BlackTitle "WIM"]
[WhiteClock "0:25:22"]
[BlackClock "0:56:56"]
[Variant "Standard"]

1. e4 {[%clk 1:30:17]}  e5 {[%clk 1:30:30]} 2. Nf3 {[%clk 1:30:37]}  Nc6 {[%clk 1:30:54]} 3. Bb5 {[%clk 1:30:58]}  a6 {[%clk 1:31:17]}
4. Bxc6 {[%clk 1:31:21]}  dxc6 {[%clk 1:31:41]} 5. O-O {[%clk 1:31:45]}  Bd6 {[%clk 1:31:58]} 6. d4 {[%clk 1:32:06]}  exd4 {[%clk 1:32:20]}
7. Qxd4 {[%clk 1:32:32]}  f6 {[%clk 1:32:35]} 8. Nc3 {[%clk 1:32:53]}  Ne7 {[%clk 1:30:40]} 9. Re1 {[%clk 1:33:05]}  Ng6 {[%clk 1:27:30]}
10. Qc4 {[%clk 1:17:00]}  Qe7 {[%clk 1:24:48]} 11. Nd4 {[%clk 1:11:32]}  Bd7 {[%clk 1:19:11]} 12. Be3 {[%clk 1:04:57]}  Ne5 {[%clk 1:14:49]}
13. Qb3 {[%clk 0:59:55]}  O-O-O {[%clk 1:12:06]} 14. Nf5 {[%clk 0:58:18]}  Bxf5 {[%clk 1:10:34]} 15. exf5 {[%clk 0:58:46]}  Qd7 {[%clk 1:08:28]}
16. Qe6 {[%clk 0:47:05]}  Qxe6 {[%clk 1:05:25]} 17. fxe6 {[%clk 0:47:12]}  Rhe8 {[%clk 1:04:56]} 18. f4 {[%clk 0:46:58]}  Ng4 {[%clk 1:02:11]}
19. Ne4 {[%clk 0:30:17]}  Rxe6 {[%clk 1:00:55]} 20. Nxd6+ {[%clk 0:28:47]}  cxd6 {[%clk 1:00:35]} 21. Bd2 {[%clk 0:28:44]}  Rde8 {[%clk 1:00:08]}
22. Rxe6 {[%clk 0:28:47]}  Rxe6 {[%clk 1:00:31]} 23. Re1 {[%clk 0:29:13]}  Rxe1+ {[%clk 1:00:17]} 24. Bxe1 {[%clk 0:29:41]}  Ne3 {[%clk 0:59:42]}
25. c3 {[%clk 0:30:04]}  d5 {[%clk 0:58:45]} 26. b3 {[%clk 0:30:15]}  Kd7 {[%clk 0:58:43]} 27. Kf2 {[%clk 0:30:34]}  Ng4+ {[%clk 0:57:26]}
28. Kg3 {[%clk 0:30:09]}  f5 {[%clk 0:57:38]} 29. h3 {[%clk 0:30:17]}  Nf6 {[%clk 0:57:56]} 30. Kh4 {[%clk 0:29:49]}  Ke6 {[%clk 0:57:19]}
31. g4 {[%clk 0:29:50]}  Ne4 {[%clk 0:57:02]} 32. Kh5 {[%clk 0:29:03]}  c5 {[%clk 0:57:02]} 33. a4 {[%clk 0:25:38]}  d4 {[%clk 0:57:09]}
34. cxd4 {[%clk 0:24:07]}  cxd4 {[%clk 0:55:54]} 35. b4 {[%clk 0:24:31]}  d3 {[%clk 0:56:19]} 36. a5 {[%clk 0:24:55]}  d2 {[%clk 0:56:30]}
37. Bxd2 {[%clk 0:25:22]}  Nxd2 {[%clk 0:56:56]} 0-1

[Event "2026 European Womens Championship"]
[Site "Batumi, GE"]
[Date "2026.05.26"]
[Round "2"]
[White "Dwilewicz, Katarzyna"]
[Black "Nahapetyan, Ani"]
[Result "0-1"]
[Board "67"]
[TimeControl "5400+30"]
[WhiteFideId "1148486"]
[BlackFideId "13317776"]
[WhiteElo "2131"]
[BlackElo "1827"]
[WhiteTitle "WIM"]
[WhiteClock "0:01:30"]
[BlackClock "0:06:20"]
[Variant "Standard"]

1. e4 {[%clk 1:30:56]}  c5 {[%clk 1:30:49]} 2. Nf3 {[%clk 1:31:05]}  d6 {[%clk 1:31:11]} 3. d4 {[%clk 1:31:22]}  cxd4 {[%clk 1:31:34]}
4. Nxd4 {[%clk 1:31:47]}  Nf6 {[%clk 1:31:57]} 5. Nc3 {[%clk 1:32:08]}  a6 {[%clk 1:32:20]} 6. Bc4 {[%clk 1:32:19]}  e6 {[%clk 1:32:02]}
7. Bb3 {[%clk 1:32:26]}  b5 {[%clk 1:31:02]} 8. O-O {[%clk 1:32:01]}  Be7 {[%clk 1:26:00]} 9. Qf3 {[%clk 1:31:57]}  Qc7 {[%clk 1:13:11]}
10. Qg3 {[%clk 1:30:54]}  O-O {[%clk 1:08:21]} 11. Bh6 {[%clk 1:30:59]}  Ne8 {[%clk 1:05:58]} 12. Rad1 {[%clk 1:30:47]}  Nc6 {[%clk 1:04:26]}
13. Nd5 {[%clk 1:27:51]}  Nxd4 {[%clk 0:58:03]} 14. Nxe7+ {[%clk 1:28:11]}  Qxe7 {[%clk 0:57:33]} 15. Rxd4 {[%clk 1:28:34]}  e5 {[%clk 0:52:48]}
16. Rd3 {[%clk 1:19:12]}  Be6 {[%clk 0:51:05]} 17. Rfd1 {[%clk 1:16:05]}  Bxb3 {[%clk 0:48:01]} 18. axb3 {[%clk 1:15:05]}  Kh8 {[%clk 0:46:42]}
19. Bg5 {[%clk 1:08:56]}  f6 {[%clk 0:44:21]} 20. Bd2 {[%clk 1:07:24]}  Rc8 {[%clk 0:43:11]} 21. Rc3 {[%clk 0:54:38]}  Nc7 {[%clk 0:40:33]}
22. Qd3 {[%clk 0:49:12]}  f5 {[%clk 0:29:55]} 23. exf5 {[%clk 0:43:59]}  d5 {[%clk 0:29:27]} 24. Qh3 {[%clk 0:39:38]}  d4 {[%clk 0:27:08]}
25. Rg3 {[%clk 0:36:55]}  Qf7 {[%clk 0:24:09]} 26. Bb4 {[%clk 0:20:55]}  Rfe8 {[%clk 0:24:18]} 27. Rg5 {[%clk 0:16:14]}  Nd5 {[%clk 0:23:21]}
28. Rh5 {[%clk 0:16:20]}  Nf6 {[%clk 0:22:57]} 29. Rh4 {[%clk 0:16:46]}  Rxc2 {[%clk 0:22:02]} 30. Ba3 {[%clk 0:07:10]}  e4 {[%clk 0:18:16]}
31. g4 {[%clk 0:07:07]}  e3 {[%clk 0:15:45]} 32. Rf1 {[%clk 0:04:13]}  exf2+ {[%clk 0:08:34]} 33. Rxf2 {[%clk 0:02:26]}  Rxf2 {[%clk 0:08:59]}
34. Kxf2 {[%clk 0:02:54]}  Re3 {[%clk 0:09:13]} 35. Qf1 {[%clk 0:02:13]}  Ne4+ {[%clk 0:07:21]} 36. Kg2 {[%clk 0:01:11]}  Nd2 {[%clk 0:05:38]}
37. Qc1 {[%clk 0:01:24]}  Qb7+ {[%clk 0:06:01]} 38. Kf2 {[%clk 0:00:57]}  Rf3+ {[%clk 0:05:42]} 39. Ke2 {[%clk 0:01:10]}  Qe4+ {[%clk 0:05:56]}
40. Kxd2 {[%clk 0:01:30]}  Qd3+ {[%clk 0:06:20]} 0-1

[Event "2026 European Womens Championship"]
[Site "Batumi, GE"]
[Date "2026.05.26"]
[Round "2"]
[White "Chkhartishvili, Lika"]
[Black "Ptacnikova, Lenka"]
[Result "1/2-1/2"]
[Board "68"]
[TimeControl "5400+30"]
[WhiteFideId "13635166"]
[BlackFideId "305650"]
[WhiteElo "1822"]
[BlackElo "2126"]
[BlackTitle "WGM"]
[WhiteClock "0:06:49"]
[BlackClock "0:09:07"]
[Variant "Standard"]

1. e4 {[%clk 1:30:56]}  d6 {[%clk 1:30:49]} 2. d4 {[%clk 1:31:21]}  Nf6 {[%clk 1:31:15]} 3. Nc3 {[%clk 1:31:45]}  g6 {[%clk 1:31:39]}
4. Bg5 {[%clk 1:32:08]}  Bg7 {[%clk 1:32:03]} 5. Qd2 {[%clk 1:30:39]}  h6 {[%clk 1:32:17]} 6. Bh4 {[%clk 1:30:53]}  O-O {[%clk 1:32:06]}
7. O-O-O {[%clk 1:29:16]}  a6 {[%clk 1:29:45]} 8. f4 {[%clk 1:24:51]}  b5 {[%clk 1:29:23]} 9. e5 {[%clk 1:17:50]}  dxe5 {[%clk 1:14:31]}
10. dxe5 {[%clk 1:16:50]}  Qxd2+ {[%clk 1:14:50]} 11. Rxd2 {[%clk 1:17:05]}  b4 {[%clk 1:14:59]} 12. Nd1 {[%clk 1:10:55]}  Nh5 {[%clk 1:09:13]}
13. Bxe7 {[%clk 0:55:28]}  Re8 {[%clk 1:09:32]} 14. Bxb4 {[%clk 0:54:46]}  Nxf4 {[%clk 1:06:53]} 15. Nf3 {[%clk 0:49:12]}  Bb7 {[%clk 1:05:49]}
16. Bc3 {[%clk 0:46:26]}  Bxf3 {[%clk 0:55:26]} 17. gxf3 {[%clk 0:46:43]}  Nc6 {[%clk 0:55:38]} 18. e6 {[%clk 0:41:45]}  Rxe6 {[%clk 0:52:06]}
19. Bxg7 {[%clk 0:41:55]}  Kxg7 {[%clk 0:52:30]} 20. Bc4 {[%clk 0:41:15]}  Re7 {[%clk 0:52:34]} 21. Nc3 {[%clk 0:36:44]}  Ne5 {[%clk 0:52:06]}
22. Bb3 {[%clk 0:28:24]}  Rae8 {[%clk 0:50:33]} 23. Rf1 {[%clk 0:27:16]}  f5 {[%clk 0:42:45]} 24. Nd5 {[%clk 0:23:14]}  Nxd5 {[%clk 0:42:44]}
25. Rxd5 {[%clk 0:23:21]}  Rf8 {[%clk 0:40:13]} 26. h3 {[%clk 0:17:53]}  f4 {[%clk 0:40:01]} 27. Rd2 {[%clk 0:16:39]}  Rfe8 {[%clk 0:35:16]}
28. c3 {[%clk 0:16:15]}  g5 {[%clk 0:34:53]} 29. Kc2 {[%clk 0:16:22]}  Kf6 {[%clk 0:33:14]} 30. Bd5 {[%clk 0:13:55]}  Rd7 {[%clk 0:30:00]}
31. b3 {[%clk 0:13:39]}  Red8 {[%clk 0:30:07]} 32. Rfd1 {[%clk 0:13:59]}  c6 {[%clk 0:23:43]} 33. Be4 {[%clk 0:14:15]}  Ke6 {[%clk 0:21:42]}
34. a4 {[%clk 0:13:56]}  Rxd2+ {[%clk 0:20:15]} 35. Rxd2 {[%clk 0:14:22]}  Rxd2+ {[%clk 0:18:27]} 36. Kxd2 {[%clk 0:14:48]}  Kd6 {[%clk 0:17:51]}
37. Ke2 {[%clk 0:14:28]}  Kc5 {[%clk 0:16:30]} 38. Bf5 {[%clk 0:14:22]}  a5 {[%clk 0:16:21]} 39. Be4 {[%clk 0:13:39]}  Kb6 {[%clk 0:12:13]}
40. Kd2 {[%clk 0:09:54]}  c5 {[%clk 0:11:15]} 41. Bd5 {[%clk 0:07:00]}  Kc7 {[%clk 0:10:19]} 42. Ke2 {[%clk 0:07:07]}  Kd6 {[%clk 0:10:20]}
43. Be4 {[%clk 0:06:13]}  Kc7 {[%clk 0:09:09]} 44. Bf5 {[%clk 0:06:25]}  Kb6 {[%clk 0:08:53]} 45. Be6 {[%clk 0:06:31]}  Kc7 {[%clk 0:09:07]}
46. Bf5 {[%clk 0:06:49]} 1/2-1/2

[Event "2026 European Womens Championship"]
[Site "Batumi, GE"]
[Date "2026.05.26"]
[Round "2"]
[White "Vidic, Teja"]
[Black "Nadanyan, Kiti"]
[Result "0-1"]
[Board "69"]
[TimeControl "5400+30"]
[WhiteFideId "14605511"]
[BlackFideId "13316710"]
[WhiteElo "2123"]
[BlackElo "1801"]
[WhiteTitle "WIM"]
[WhiteClock "0:00:56"]
[BlackClock "0:01:49"]
[Variant "Standard"]

1. e4 {[%clk 1:30:58]}  c6 {[%clk 1:28:29]} 2. d4 {[%clk 1:31:02]}  d5 {[%clk 1:28:56]} 3. e5 {[%clk 1:31:25]}  c5 {[%clk 1:28:47]}
4. c3 {[%clk 1:31:39]}  Nc6 {[%clk 1:28:30]} 5. Be2 {[%clk 1:31:59]}  Bf5 {[%clk 1:24:13]} 6. Nf3 {[%clk 1:32:19]}  cxd4 {[%clk 1:23:37]}
7. Nxd4 {[%clk 1:30:45]}  Nxd4 {[%clk 1:08:19]} 8. cxd4 {[%clk 1:30:53]}  a6 {[%clk 1:08:18]} 9. Nc3 {[%clk 1:28:45]}  Qd7 {[%clk 0:42:46]}
10. O-O {[%clk 1:27:42]}  e6 {[%clk 0:42:42]} 11. g4 {[%clk 1:28:01]}  Bg6 {[%clk 0:42:45]} 12. f4 {[%clk 1:28:26]}  f5 {[%clk 0:33:28]}
13. Bd3 {[%clk 1:12:37]}  Ne7 {[%clk 0:30:55]} 14. Be3 {[%clk 1:08:36]}  h5 {[%clk 0:30:21]} 15. g5 {[%clk 1:06:05]}  b5 {[%clk 0:24:40]}
16. Rc1 {[%clk 1:04:10]}  Kf7 {[%clk 0:20:47]} 17. Rf2 {[%clk 1:00:27]}  Nc8 {[%clk 0:10:16]} 18. a4 {[%clk 0:54:03]}  b4 {[%clk 0:06:51]}
19. Na2 {[%clk 0:52:15]}  Be7 {[%clk 0:04:25]} 20. a5 {[%clk 0:45:45]}  Na7 {[%clk 0:03:10]} 21. Qb3 {[%clk 0:45:30]}  Nc6 {[%clk 0:03:04]}
22. Qd1 {[%clk 0:40:13]}  Nxa5 {[%clk 0:03:22]} 23. b3 {[%clk 0:40:38]}  Rhc8 {[%clk 0:03:05]} 24. Rfc2 {[%clk 0:38:37]}  Qb7 {[%clk 0:03:20]}
25. h4 {[%clk 0:35:09]}  Rxc2 {[%clk 0:01:19]} 26. Qxc2 {[%clk 0:34:59]}  Kg8 {[%clk 0:01:42]} 27. Qd1 {[%clk 0:22:58]}  Be8 {[%clk 0:01:51]}
28. Ra1 {[%clk 0:23:13]}  g6 {[%clk 0:01:59]} 29. Nc1 {[%clk 0:23:11]}  Nc6 {[%clk 0:02:10]} 30. Qf1 {[%clk 0:20:06]}  Nb8 {[%clk 0:01:34]}
31. Be2 {[%clk 0:17:59]}  a5 {[%clk 0:00:54]} 32. Nd3 {[%clk 0:18:26]}  Nd7 {[%clk 0:00:32]} 33. Ra2 {[%clk 0:18:13]}  Qc7 {[%clk 0:00:36]}
34. Qa1 {[%clk 0:18:32]}  Qc3 {[%clk 0:00:32]} 35. Qb1 {[%clk 0:17:46]}  Rc8 {[%clk 0:00:32]} 36. Rxa5 {[%clk 0:11:10]}  Qc2 {[%clk 0:00:58]}
37. Qxc2 {[%clk 0:11:35]}  Rxc2 {[%clk 0:01:25]} 38. Kf2 {[%clk 0:11:58]}  Rc3 {[%clk 0:01:12]} 39. Nc1 {[%clk 0:12:09]}  Kf7 {[%clk 0:00:32]}
40. Bd2 {[%clk 0:06:57]}  Rc2 {[%clk 0:00:40]} 41. Ra2 {[%clk 0:01:17]}  Rc7 {[%clk 0:29:14]} 42. Ra5 {[%clk 0:22:00]}  Nb8 {[%clk 0:23:03]}
43. Bb5 {[%clk 0:18:30]}  Bxb5 {[%clk 0:21:42]} 44. Rxb5 {[%clk 0:15:02]}  Rc2 {[%clk 0:18:48]} 45. Ke2 {[%clk 0:11:16]}  Nc6 {[%clk 0:18:40]}
46. Kd3 {[%clk 0:10:37]}  Rb2 {[%clk 0:12:12]} 47. Be1 {[%clk 0:06:56]}  Rh2 {[%clk 0:10:51]} 48. Bg3 {[%clk 0:05:50]}  Rg2 {[%clk 0:10:35]}
49. Be1 {[%clk 0:05:55]}  Rg1 {[%clk 0:09:43]} 50. Bd2 {[%clk 0:05:58]}  Rg3+ {[%clk 0:05:24]} 51. Be3 {[%clk 0:06:24]}  Rh3 {[%clk 0:05:03]}
52. Rb7 {[%clk 0:01:52]}  Rxh4 {[%clk 0:04:53]} 53. Rc7 {[%clk 0:02:16]}  Nd8 {[%clk 0:04:10]} 54. Bd2 {[%clk 0:02:23]}  Ke8 {[%clk 0:04:04]}
55. Kc2 {[%clk 0:01:30]}  Rh2 {[%clk 0:03:48]} 56. Nd3 {[%clk 0:01:57]}  h4 {[%clk 0:03:56]} 57. Kd1 {[%clk 0:01:35]}  h3 {[%clk 0:03:59]}
58. Nxb4 {[%clk 0:00:53]}  Rh1+ {[%clk 0:03:00]} 59. Ke2 {[%clk 0:00:40]}  h2 {[%clk 0:03:11]} 60. Nd3 {[%clk 0:01:01]}  Rf1 {[%clk 0:01:47]}
61. Kxf1 {[%clk 0:00:58]}  h1=Q+ {[%clk 0:02:11]} 62. Ke2 {[%clk 0:00:03]}  Qh5+ {[%clk 0:01:57]} 63. Ke3 {[%clk 0:01:32]}  Qh3+ {[%clk 0:01:03]}
64. Ke2 {[%clk 0:01:57]}  Qg4+ {[%clk 0:01:25]} 65. Ke3 {[%clk 0:02:18]}  Bxg5 {[%clk 0:01:12]} 66. Rh7 {[%clk 0:00:45]}  Qg1+ {[%clk 0:00:55]}
67. Ke2 {[%clk 0:00:55]}  Qg4+ {[%clk 0:01:10]} 68. Ke3 {[%clk 0:00:58]}  Nf7 {[%clk 0:00:45]} 69. b4 {[%clk 0:01:05]}  Qg2 {[%clk 0:00:56]}
70. fxg5 {[%clk 0:00:32]}  Qe4+ {[%clk 0:01:21]} 71. Kf2 {[%clk 0:00:56]}  Qxd3 {[%clk 0:01:49]} 0-1

[Event "2026 European Womens Championship"]
[Site "Batumi, GE"]
[Date "2026.05.26"]
[Round "2"]
[White "Ivekovic, Tihana"]
[Black "Saltkhutsishvili, Sara"]
[Result "1-0"]
[Board "70"]
[TimeControl "5400+30"]
[WhiteFideId "14517825"]
[BlackFideId "13636995"]
[WhiteElo "2119"]
[BlackElo "1763"]
[WhiteTitle "WFM"]
[WhiteClock "0:26:22"]
[BlackClock "0:01:31"]
[Variant "Standard"]

1. e4 {[%clk 1:30:58]}  c5 {[%clk 1:30:57]} 2. Nf3 {[%clk 1:31:22]}  Nc6 {[%clk 1:31:26]} 3. c3 {[%clk 1:31:44]}  Nf6 {[%clk 1:31:52]}
4. e5 {[%clk 1:32:08]}  Nd5 {[%clk 1:32:18]} 5. Bc4 {[%clk 1:32:28]}  Nb6 {[%clk 1:32:14]} 6. Bb3 {[%clk 1:32:41]}  c4 {[%clk 1:29:53]}
7. Bc2 {[%clk 1:33:05]}  Qc7 {[%clk 1:28:39]} 8. Qe2 {[%clk 1:32:36]}  g5 {[%clk 1:25:07]} 9. Na3 {[%clk 1:23:30]}  g4 {[%clk 1:16:53]}
10. Nb5 {[%clk 1:16:49]}  Qb8 {[%clk 1:15:53]} 11. Ng5 {[%clk 1:10:37]}  Nxe5 {[%clk 1:10:52]} 12. h3 {[%clk 0:59:36]}  a6 {[%clk 0:54:39]}
13. Nd4 {[%clk 0:59:38]}  Nd5 {[%clk 0:53:32]} 14. Kf1 {[%clk 0:49:11]}  b6 {[%clk 0:31:51]} 15. hxg4 {[%clk 0:46:31]}  Bb7 {[%clk 0:29:40]}
16. Ngf3 {[%clk 0:34:08]}  Nxg4 {[%clk 0:19:45]} 17. Qxc4 {[%clk 0:31:11]}  Nf4 {[%clk 0:14:13]} 18. Ne2 {[%clk 0:26:43]}  Nxe2 {[%clk 0:07:18]}
19. Qxe2 {[%clk 0:26:53]}  Bg7 {[%clk 0:05:53]} 20. d4 {[%clk 0:26:21]}  h6 {[%clk 0:00:43]} 21. Nh4 {[%clk 0:26:05]}  Nf6 {[%clk 0:00:38]}
22. Nf5 {[%clk 0:25:57]}  Bf8 {[%clk 0:00:50]} 23. Rh4 {[%clk 0:24:42]}  Qa7 {[%clk 0:00:33]} 24. Nd6+ {[%clk 0:24:53]}  Kd8 {[%clk 0:00:53]}
25. Nxf7+ {[%clk 0:25:17]}  Kc8 {[%clk 0:01:06]} 26. Nxh8 {[%clk 0:25:36]}  e6 {[%clk 0:01:01]} 27. Bf4 {[%clk 0:25:24]}  Be7 {[%clk 0:01:03]}
28. Ng6 {[%clk 0:25:43]}  Bd8 {[%clk 0:01:27]} 29. Rxh6 {[%clk 0:26:00]}  Nd5 {[%clk 0:01:12]} 30. Bg3 {[%clk 0:26:00]}  a5 {[%clk 0:01:08]}
31. Bd3 {[%clk 0:25:58]}  a4 {[%clk 0:01:29]} 32. a3 {[%clk 0:26:08]}  Nc7 {[%clk 0:01:31]} 33. Rh8 {[%clk 0:26:22]} 1-0

[Event "2026 European Womens Championship"]
[Site "Batumi, GE"]
[Date "2026.05.26"]
[Round "2"]
[White "Gharibyan, Mane"]
[Black "Liavonava, Yuliya"]
[Result "0-1"]
[Board "71"]
[TimeControl "5400+30"]
[WhiteFideId "13306430"]
[BlackFideId "13524178"]
[WhiteElo "1776"]
[BlackElo "2118"]
[BlackTitle "WFM"]
[WhiteClock "1:06:52"]
[BlackClock "0:25:52"]
[Variant "Standard"]

1. e4 {[%clk 1:27:47]}  c5 {[%clk 1:30:56]} 2. Nf3 {[%clk 1:28:12]}  d6 {[%clk 1:31:22]} 3. Bb5+ {[%clk 1:28:16]}  Nd7 {[%clk 1:31:46]}
4. O-O {[%clk 1:28:20]}  a6 {[%clk 1:31:48]} 5. Bxd7+ {[%clk 1:28:08]}  Bxd7 {[%clk 1:32:06]} 6. c3 {[%clk 1:25:19]}  Nf6 {[%clk 1:32:24]}
7. Re1 {[%clk 1:25:44]}  e6 {[%clk 1:32:26]} 8. d4 {[%clk 1:26:06]}  Be7 {[%clk 1:26:08]} 9. e5 {[%clk 1:25:06]}  Nd5 {[%clk 1:24:56]}
10. exd6 {[%clk 1:17:27]}  Bxd6 {[%clk 1:25:19]} 11. dxc5 {[%clk 1:17:53]}  Be7 {[%clk 1:25:44]} 12. c4 {[%clk 1:15:45]}  Nf6 {[%clk 1:23:15]}
13. Qd4 {[%clk 0:56:38]}  O-O {[%clk 1:20:54]} 14. Bf4 {[%clk 0:43:17]}  Bc6 {[%clk 1:19:03]} 15. Nbd2 {[%clk 0:40:00]}  Qxd4 {[%clk 1:13:53]}
16. Nxd4 {[%clk 0:40:18]}  Bxc5 {[%clk 1:14:18]} 17. Nxc6 {[%clk 0:37:50]}  bxc6 {[%clk 1:14:44]} 18. Nb3 {[%clk 0:38:02]}  Ba7 {[%clk 1:14:36]}
19. Na5 {[%clk 0:31:10]}  Rac8 {[%clk 1:08:23]} 20. Rad1 {[%clk 0:28:55]}  Ng4 {[%clk 0:41:17]} 21. Bg3 {[%clk 0:24:32]}  h5 {[%clk 0:41:42]}
22. h3 {[%clk 0:15:16]}  Nh6 {[%clk 0:42:07]} 23. Rd7 {[%clk 0:15:02]}  Bb6 {[%clk 0:42:26]} 24. Nb7 {[%clk 0:08:37]}  c5 {[%clk 0:40:45]}
25. Rd6 {[%clk 0:06:04]}  Bc7 {[%clk 0:41:10]} 26. Rxa6 {[%clk 0:05:40]}  Bxg3 {[%clk 0:41:36]} 27. fxg3 {[%clk 0:06:06]}  Rb8 {[%clk 0:41:06]}
28. Rb6 {[%clk 0:01:34]}  Nf5 {[%clk 0:41:29]} 29. Rb5 {[%clk 0:01:20]}  Nd4 {[%clk 0:41:02]} 30. Rb6 {[%clk 0:00:35]}  Rfc8 {[%clk 0:41:21]}
31. Nd6 {[%clk 0:00:34]}  Rxb6 {[%clk 0:41:47]} 32. Nxc8 {[%clk 0:01:01]}  Rxb2 {[%clk 0:42:10]} 33. a3 {[%clk 0:00:33]}  f6 {[%clk 0:35:50]}
34. Nd6 {[%clk 0:00:39]}  e5 {[%clk 0:34:47]} 35. Ne4 {[%clk 0:00:33]}  Rc2 {[%clk 0:34:01]} 36. Nxc5 {[%clk 0:00:34]}  Rxc4 {[%clk 0:34:27]}
37. Ne4 {[%clk 0:00:33]}  Ra4 {[%clk 0:34:40]} 38. Ra1 {[%clk 0:00:34]}  Ne2+ {[%clk 0:34:43]} 39. Kf2 {[%clk 0:00:41]}  Rxe4 {[%clk 0:35:09]}
40. Kf3 {[%clk 0:00:35]}  Nc3 {[%clk 0:35:24]} 41. Rc1 {[%clk 0:28:29]}  Rc4 {[%clk 1:05:49]} 42. a4 {[%clk 0:28:13]}  g5 {[%clk 1:05:11]}
43. a5 {[%clk 0:26:16]}  g4+ {[%clk 1:05:25]} 44. Ke3 {[%clk 0:24:40]}  Nd5+ {[%clk 1:05:50]} 45. Kd2 {[%clk 0:25:08]}  Rxc1 {[%clk 1:06:08]}
46. Kxc1 {[%clk 0:25:35]}  Nc7 {[%clk 1:06:31]} 47. Kd2 {[%clk 0:25:54]}  Kf7 {[%clk 1:06:29]} 48. Kd3 {[%clk 0:25:52]}  Ke6 {[%clk 1:06:52]} 0-1

[Event "2026 European Womens Championship"]
[Site "Batumi, GE"]
[Date "2026.05.26"]
[Round "2"]
[White "Donghvani, Nia"]
[Black "Saraci, Rinesa"]
[Result "1-0"]
[Board "72"]
[TimeControl "5400+30"]
[WhiteFideId "13614649"]
[BlackFideId "4701976"]
[WhiteElo "2117"]
[BlackElo "1754"]
[WhiteTitle "WFM"]
[BlackTitle "WCM"]
[WhiteClock "0:00:54"]
[BlackClock "0:00:47"]
[Variant "Standard"]

1. e4 {[%clk 1:30:58]}  e5 {[%clk 1:30:05]} 2. Nf3 {[%clk 1:30:59]}  Nc6 {[%clk 1:30:23]} 3. Bb5 {[%clk 1:31:07]}  a6 {[%clk 1:28:39]}
4. Ba4 {[%clk 1:31:24]}  Nf6 {[%clk 1:28:55]} 5. O-O {[%clk 1:31:49]}  b5 {[%clk 1:28:33]} 6. Bb3 {[%clk 1:32:02]}  Bc5 {[%clk 1:28:01]}
7. c3 {[%clk 1:17:47]}  d6 {[%clk 1:19:09]} 8. a4 {[%clk 1:17:22]}  Bd7 {[%clk 1:14:41]} 9. d4 {[%clk 1:10:33]}  Ba7 {[%clk 1:10:58]}
10. Bc2 {[%clk 0:53:20]}  h6 {[%clk 1:03:45]} 11. Na3 {[%clk 0:44:54]}  exd4 {[%clk 0:46:53]} 12. Nxd4 {[%clk 0:34:29]}  Nxd4 {[%clk 0:40:40]}
13. cxd4 {[%clk 0:34:56]}  O-O {[%clk 0:38:14]} 14. b4 {[%clk 0:24:53]}  Re8 {[%clk 0:33:30]} 15. Re1 {[%clk 0:23:14]}  c6 {[%clk 0:27:14]}
16. Bb2 {[%clk 0:17:12]}  Qb6 {[%clk 0:16:39]} 17. a5 {[%clk 0:15:08]}  Qb7 {[%clk 0:16:47]} 18. Qf3 {[%clk 0:13:53]}  Re7 {[%clk 0:09:37]}
19. h3 {[%clk 0:12:01]}  Rae8 {[%clk 0:09:09]} 20. Bc3 {[%clk 0:04:40]}  Nh7 {[%clk 0:05:23]} 21. Qg3 {[%clk 0:01:53]}  d5 {[%clk 0:00:46]}
22. e5 {[%clk 0:01:45]}  Ng5 {[%clk 0:00:43]} 23. f4 {[%clk 0:00:49]}  Ne6 {[%clk 0:00:36]} 24. Qd3 {[%clk 0:00:36]}  g6 {[%clk 0:00:33]}
25. f5 {[%clk 0:00:38]}  Nf4 {[%clk 0:00:37]} 26. Qf3 {[%clk 0:00:47]}  Rxe5 {[%clk 0:00:31]} 27. Qxf4 {[%clk 0:00:43]}  g5 {[%clk 0:00:43]}
28. Qg3 {[%clk 0:00:45]}  Qc7 {[%clk 0:00:35]} 29. Rxe5 {[%clk 0:01:14]}  Rxe5 {[%clk 0:00:47]} 30. Kh1 {[%clk 0:00:54]} 1-0